bitfinex/quotes_ETHUSD_20251028
["timestamp","ask_amount","ask_price","bid_price","bid_amount"]
[1761619767269,8.26235422,4104.3,4104.1,0.012]
[1761619768724,6.43428014,4104.3,4104.1,0.012]
[1761619768937,7.40828014,4104.3,4104.1,0.012]
[1761619769868,7.52988014,4104.3,4104.1,0.012]
[1761619771157,8.38395422,4104.3,4104.1,0.012]
[1761619771564,7.52988014,4104.3,4104.1,0.012]
[1761619772064,8.17064258,4104.3,4104.1,0.012]
[1761619772360,4.25240708,4104.3,4104.1,0.012]
[1761619772541,5.59979734,4104.3,4104.1,0.012]
[1761619772747,6.00530134,4104.3,4104.1,0.012]
[1761619772942,5.59979734,4104.3,4104.1,0.012]
[1761619773251,3.56883228,4104.3,4104.1,0.012]
[1761619773455,6.00530134,4104.3,4104.1,0.012]
[1761619773658,2.59483228,4104.3,4104.1,0.012]
[1761619773862,3.56883228,4104.3,4104.1,0.012]
[1761619774245,6.00530134,4104.3,4104.1,0.012]
[1761619774963,7.34284477,4104.3,4104.1,0.012]
[1761619778849,7.98360721,4104.3,4104.1,0.012]
[1761619779149,7.34284477,4104.3,4104.1,0.012]
[1761619779784,2.8420918,4104.1,4104.0,1e-08]
[1761619779967,4.90982008,4104.1,4104.0,1e-08]
[1761619780172,4.021,4102.9,4101.6,1e-08]
[1761619780375,2.43819183,4101.4,4098.8,0.12704286]
[1761619780568,4.1162,4101.5,4097.3,0.125]
[1761619780569,2.44057207,4097.4,4097.3,0.125]
[1761619780882,1.51738403,4097.3,4096.6,0.003]
[1761619781085,12.9892824,4096.9,4096.6,0.003]
[1761619781252,0.51250607,4096.8,4096.6,0.003]
[1761619781453,0.4293,4096.8,4096.6,0.003]
[1761619781683,0.63700941,4096.9,4096.6,0.003]
[1761619781903,1.01571438,4096.8,4096.6,0.003]
[1761619782052,1.48650607,4097.1,4096.6,0.003]
[1761619782253,0.51250607,4097.4,4096.6,0.003]
[1761619782455,12.9892824,4096.8,4094.7,0.02442181]
[1761619782785,1.49794967,4097.4,4094.1,0.01]
[1761619782786,0.2187,4094.2,4094.1,0.01]
[1761619782984,0.405504,4093.8,4092.1,0.145]
[1761619783188,0.63489666,4093.3,4092.6,0.2687]
[1761619783385,0.63489666,4094.3,4093.2,0.1475]
[1761619783586,0.975,4094.3,4093.2,0.1475]
[1761619783786,0.4293,4094.2,4092.7,0.1475]
[1761619783998,1.960704,4094.0,4092.7,0.1475]
[1761619784201,1.960704,4094.0,4092.1,0.01]
[1761619784202,0.50576367,4094.0,4092.1,0.01]
[1761619784493,2.84858032,4093.2,4092.1,0.01]
[1761619784694,1.960704,4093.2,4092.1,0.01]
[1761619784896,0.50374532,4093.2,4092.5,0.1475]
[1761619785069,0.4293,4093.2,4092.2,12.9892824]
[1761619785263,0.975,4093.4,4093.0,0.1475]
[1761619785463,0.405504,4093.3,4092.7,0.1475]
[1761619785682,0.975,4093.4,4092.9,12.9892824]
[1761619785891,1.5552,4093.9,4092.9,12.9892824]
[1761619786094,1.50515074,4093.9,4092.9,12.9892824]
[1761619786294,0.975,4094.0,4092.1,0.01]
[1761619786469,0.405504,4093.2,4092.1,0.01]
[1761619786670,4.429504,4093.2,4092.1,0.01]
[1761619786971,4.429504,4093.2,4093.1,1e-08]
[1761619786972,5.35985871,4093.2,4093.1,1e-08]
[1761619787363,0.834804,4093.2,4093.1,1e-08]
[1761619787694,0.975,4093.4,4093.1,1e-08]
[1761619788375,0.405504,4093.3,4093.1,1e-08]
[1761619788575,0.975,4093.4,4092.6,0.02543547]
[1761619788882,0.405504,4092.2,4092.1,0.01]
[1761619789063,3.584704,4092.2,4092.1,0.01]
[1761619789264,0.405504,4091.7,4091.1,0.01]
[1761619789763,1.960704,4091.8,4091.1,0.01]
[1761619790225,0.2187,4090.6,4089.8,0.1221]
[1761619790366,0.405504,4089.0,4087.1,0.01]
[1761619790561,2.44507723,4089.9,4087.1,0.01]
[1761619790562,0.976,4089.3,4088.5,12.9892824]
[1761619790791,0.976,4089.9,4088.5,12.9892824]
[1761619790999,0.976,4089.9,4089.1,12.9892824]
[1761619791203,0.405504,4090.2,4087.1,0.01]
[1761619791465,0.976,4090.3,4087.1,0.01]
[1761619791466,0.405504,4090.3,4088.9,12.9892824]
[1761619791666,0.976,4090.5,4088.9,12.9892824]
[1761619791875,0.976,4090.5,4088.9,15.43491979]
[1761619792097,0.976,4090.5,4088.9,12.9892824]
[1761619792299,0.976,4090.5,4087.4,0.00252525]
[1761619792300,0.84560585,4090.4,4087.4,0.00252525]
[1761619792514,0.4293,4090.4,4088.6,12.9892824]
[1761619792664,2.44468891,4090.5,4088.6,12.9892824]
[1761619792866,0.976,4090.6,4088.6,12.9892824]
[1761619793098,0.4293,4090.5,4088.6,12.9892824]
[1761619793276,1.5552,4090.4,4088.6,12.9892824]
[1761619793690,0.4293,4090.3,4088.6,12.9892824]
[1761619794206,1.5552,4090.1,4088.1,0.01]
[1761619794376,0.2187,4088.2,4087.4,0.00252525]
[1761619794578,1.5552,4088.0,4087.4,0.00252525]
[1761619794992,0.4293,4087.9,4087.4,0.00252525]
[1761619795169,2.44648318,4087.5,4087.4,0.00252525]
[1761619795503,0.2187,4089.4,4087.4,0.00252525]
[1761619795709,2.44600307,4088.4,4087.4,0.00252525]
[1761619795869,0.977,4089.0,4087.7,12.9892824]
[1761619796309,0.4293,4089.6,4087.4,0.00252525]
[1761619796310,0.2187,4087.8,4087.4,0.00252525]
[1761619796469,2.44625634,4087.9,4087.4,0.00252525]
[1761619796669,0.4293,4088.5,4087.4,0.00252525]
[1761619796883,2.561,4088.4,4087.4,0.00252525]
[1761619797085,2.44600445,4088.3,4087.4,0.00252525]
[1761619797382,0.977,4088.6,4087.4,0.00252525]
[1761619798101,0.01223,4089.1,4087.5,12.9892824]
[1761619798311,0.01223,4089.1,4085.0,0.184]
[1761619798525,0.01223,4089.1,4078.4,2.561]
[1761619798526,2.620864,4079.6,4078.4,2.561]
[1761619798820,0.2187,4081.0,4079.5,12.9892824]
[1761619798973,0.977,4082.0,4076.1,0.01]
[1761619799170,0.648,4082.4,4079.4,2.45131686]
[1761619799374,0.12751643,4083.1,4080.3,2.45077749]
[1761619799672,0.05,4083.8,4080.4,0.977]
[1761619799673,0.4293,4083.8,4080.4,0.977]
[1761619799984,0.4293,4084.6,4081.6,12.9892824]
[1761619800183,0.1224,4083.0,4082.4,0.1224]
[1761619800491,3.055,4084.2,4075.3,1.26735401]
[1761619800800,2.44901553,4083.3,4080.1,12.9892824]
[1761619800970,0.01,4082.8,4080.8,12.9892824]
[1761619801172,0.01,4081.8,4081.6,2.4499752]
[1761619801426,0.01,4082.8,4081.7,4.05749959]
[1761619801579,0.01,4083.8,4081.8,0.978]
[1761619801772,0.01,4084.8,4083.7,12.1331129]
[1761619802005,0.01,4084.8,4083.8,0.978]
[1761619802214,0.01,4084.8,4083.0,0.02449179]
[1761619802396,0.01,4084.8,4081.9,3.056]
[1761619802397,0.01,4084.8,4083.8,12.1331129]
[1761619802584,0.01,4084.8,4081.9,3.056]
[1761619802585,0.01,4084.8,4084.3,2.44839997]
[1761619802926,0.00157,4086.4,4084.4,1.0024834]
[1761619803073,0.00157,4086.4,4084.5,0.978]
[1761619803274,0.00157,4086.4,4084.7,12.1331129]
[1761619803471,0.00157,4086.4,4083.4,1.5552]
[1761619803472,0.00157,4086.4,4084.8,0.978]
[1761619803674,0.00157,4086.4,4084.9,0.978]
[1761619803887,0.00157,4086.4,4084.5,0.0244828]
[1761619804090,0.09999999,4085.6,4083.7,12.1331129]
[1761619804291,0.2187,4085.9,4083.8,0.978]
[1761619804518,0.09999999,4083.8,4082.1,0.01]
[1761619804819,0.09999999,4083.3,4082.1,0.01]
[1761619805030,2.76735948,4082.2,4082.1,0.01]
[1761619805315,6.36569999,4082.2,4082.1,0.01]
[1761619805475,1.65519999,4081.2,4080.1,0.01]
[1761619805671,2.63319999,4081.2,4081.1,1e-08]
[1761619805903,4.10666106,4079.2,4075.1,0.01]
[1761619806088,2.55206217,4078.2,4075.1,0.01]
[1761619806410,0.09999999,4076.6,4075.1,0.00653]
[1761619806610,0.09999999,4076.5,4075.1,0.00653]
[1761619806789,0.09999999,4077.3,4075.1,0.00653]
[1761619807015,0.09999999,4076.7,4075.1,0.00653]
[1761619807227,0.09999999,4078.2,4076.5,12.1331129]
[1761619807426,0.09999999,4078.9,4077.1,12.1331129]
[1761619807636,0.09999999,4079.1,4077.2,1.00252663]
[1761619807926,0.09999999,4079.1,4075.1,2.46045467]
[1761619807927,0.09999999,4079.6,4077.3,1.00252603]
[1761619808228,0.09999999,4080.8,4078.6,12.1331129]
[1761619808386,0.09999999,4080.3,4075.5,0.0204]
[1761619808587,0.09999999,4078.0,4075.8,12.1331129]
[1761619808791,0.01,4077.8,4075.6,0.0204]
[1761619809017,0.01,4077.8,4076.5,14.5861493]
[1761619809223,0.01,4077.8,4076.6,13.1325129]
[1761619809407,0.01,4078.8,4077.4,12.1331129]
[1761619809606,0.09999999,4078.1,4076.7,0.979]
[1761619809797,0.01,4078.8,4076.7,0.979]
[1761619809798,0.09999999,4078.3,4076.7,3.4319414]
[1761619810018,0.09999999,4078.3,4076.7,0.979]
[1761619810221,0.09999999,4078.2,4076.8,0.0204]
[1761619810421,0.09999999,4078.2,4077.1,12.1331129]
[1761619810623,0.01,4078.8,4078.3,2.45194278]
[1761619810825,0.01,4078.8,4078.2,0.979]
[1761619811134,0.01,4079.8,4078.7,12.1331129]
[1761619811335,0.01,4079.8,4079.3,12.1331129]
[1761619811524,0.10999999,4079.8,4078.6,12.1331129]
[1761619811730,0.09999999,4078.7,4078.0,2.45213274]
[1761619811937,0.09999999,4079.4,4077.8,0.979]
[1761619812137,0.09999999,4078.7,4078.5,2.45187317]
[1761619812440,0.01,4079.8,4078.0,12.1331129]
[1761619812624,0.01,4079.8,4078.1,0.979]
[1761619812827,0.01,4079.8,4079.6,2.45117723]
[1761619813059,0.01,4079.8,4079.4,2.45128728]
[1761619813202,0.01,4079.8,4079.6,2.45117309]
[1761619813399,0.01,4079.8,4079.6,14.58428599]
[1761619813603,0.01,4079.8,4079.7,0.0449116]
[1761619813847,0.01,4079.8,4079.7,0.0204]
[1761619814051,0.979,4082.0,4079.7,0.0204]
[1761619814255,0.09999999,4082.0,4080.7,2.45055995]
[1761619814418,0.979,4082.7,4080.7,3.42955995]
[1761619814615,0.979,4082.7,4080.7,3.47446554]
[1761619814842,0.10999999,4082.8,4080.7,3.44995995]
[1761619814843,1e-08,4080.8,4080.7,3.44995995]
[1761619815351,0.01,4082.8,4081.7,2.44995957]
[1761619815733,1e-08,4081.8,4081.7,2.49485916]
[1761619815914,0.01,4082.8,4082.7,2.44935949]
[1761619816112,1e-08,4082.8,4082.7,3.47325308]
[1761619816343,0.01,4083.8,4083.5,2.44885662]
[1761619816520,0.01,4083.8,4083.7,2.4487597]
[1761619816721,1e-08,4083.8,4083.7,2.4487597]
[1761619816923,0.01,4084.8,4084.7,2.4481602]
[1761619819126,0.011,4084.8,4084.7,2.4481602]
[1761619819961,0.001,4085.3,4085.2,2.44786056]
[1761619820173,0.001,4085.3,4085.2,3.42686056]
[1761619820331,0.001,4085.3,4085.2,3.59413916]
[1761619820651,0.01,4086.8,4085.7,2.447561]
[1761619820952,0.00157,4086.4,4085.7,2.569961]
[1761619822951,0.09999999,4086.1,4085.7,2.569961]
[1761619823749,0.10156999,4086.4,4085.7,2.569961]
[1761619824458,0.00157,4086.4,4085.7,2.569961]
[1761619824659,0.00157,4086.4,4086.3,2.44720162]
[1761619824953,0.00157,4086.4,4086.3,2.59407363]
[1761619825272,0.01,4087.8,4086.3,0.02447201]
[1761619825472,0.01,4087.8,4087.7,2.44636348]
[1761619825676,0.01,4087.8,4087.7,0.1224]
[1761619825972,0.09999999,4087.5,4087.4,0.1224]
[1761619826493,0.09999999,4087.1,4086.4,0.979]
[1761619826639,0.09999999,4087.6,4086.7,2.44696176]
[1761619826839,0.09999999,4087.6,4086.4,0.979]
[1761619827039,0.09999999,4087.1,4086.4,0.979]
[1761619827254,0.09999999,4087.1,4086.8,2.43325322]
[1761619827454,0.09999999,4087.1,4087.0,2.44678248]
[1761619827775,0.09999999,4087.1,4086.4,0.979]
[1761619828576,0.09999999,4087.1,4087.0,2.44678248]
[1761619828773,0.01,4087.8,4087.5,2.44643542]
[1761619828774,0.10999999,4087.8,4087.5,2.44643542]
[1761619829076,0.10999999,4087.8,4087.7,2.44636348]
[1761619829278,0.01,4087.8,4087.7,2.44636348]
[1761619830658,0.01,4087.8,4086.3,14.5802926]
[1761619830950,0.01,4087.8,4087.3,2.44655582]
[1761619831270,0.01,4087.8,4086.3,12.1331129]
[1761619831453,0.01,4087.8,4085.9,0.0178]
[1761619831454,0.09999999,4087.1,4085.9,0.0178]
[1761619831776,0.09999999,4086.5,4086.4,2.44714173]
[1761619831981,0.09999999,4087.5,4085.9,2.44743772]
[1761619832180,0.09999999,4087.2,4085.5,12.1331129]
[1761619832385,0.01,4087.8,4085.7,0.405504]
[1761619832386,0.09999999,4087.7,4085.7,0.405504]
[1761619832692,0.09999999,4087.7,4085.8,0.0178]
[1761619832914,0.09999999,4087.7,4085.9,0.405504]
[1761619833115,0.09999999,4087.7,4087.5,2.44646601]
[1761619833298,0.09999999,4087.7,4086.7,0.978]
[1761619833497,0.09999999,4087.7,4087.4,2.4464935]
[1761619833793,0.09999999,4087.1,4085.2,0.405504]
[1761619833972,0.09999999,4087.1,4086.9,2.44679267]
[1761619834300,0.09999999,4087.5,4087.3,2.44658506]
[1761619834503,0.09999999,4087.5,4087.4,2.44654303]
[1761619834809,0.01,4087.8,4086.3,0.978]
[1761619834810,0.10999999,4087.8,4087.7,2.44636348]
[1761619834975,0.01,4087.8,4087.7,2.44636348]
[1761619836415,0.01,4087.8,4087.7,2.56876348]
[1761619837774,1e-08,4087.8,4087.7,2.61102711]
[1761619838401,1e-08,4087.8,4087.7,4.44933111]
[1761619839000,1e-08,4087.8,4087.7,4.42486748]
[1761619839194,1e-08,4087.8,4087.7,4.44933111]
[1761619839388,0.01,4088.8,4088.7,2.44576515]
[1761619839596,0.01,4088.8,4088.7,3.42376515]
[1761619839991,0.01,4088.8,4087.3,1.960704]
[1761619840200,0.01,4088.8,4088.7,2.44576515]
[1761619841545,1e-08,4089.1,4089.0,2.85108971]
[1761619842738,1e-08,4089.1,4089.0,3.42358571]
[1761619843039,1e-08,4089.1,4089.0,2.44558571]
[1761619843729,1e-08,4089.1,4089.0,2.47004156]
[1761619843904,1e-08,4089.1,4089.0,2.44558571]
[1761619844103,0.10999999,4089.8,4089.7,2.44516712]
[1761619844104,0.01,4089.8,4089.7,2.44516712]
[1761619845118,0.01,4089.8,4089.7,2.46961879]
[1761619847140,0.01,4089.8,4089.7,2.44516712]
[1761619847356,0.01,4089.8,4087.8,0.0178]
[1761619847642,0.09999999,4089.7,4088.8,2.44568077]
[1761619847857,0.09999999,4089.7,4087.9,3.44870622]
[1761619847858,0.09999999,4089.6,4089.5,2.44522926]
[1761619848473,0.10999999,4089.8,4089.7,2.44516712]
[1761619848681,0.01,4089.8,4089.7,2.44516712]
[1761619848971,0.10999999,4089.8,4089.7,2.44516712]
[1761619849172,0.01,4089.8,4089.7,2.44516712]
[1761619849377,0.01,4089.8,4089.7,3.44761879]
[1761619849536,0.01,4089.8,4089.7,2.46961879]
[1761619849855,0.01,4089.8,4089.7,3.44761879]
[1761619850429,1e-08,4089.8,4089.7,3.44761879]
[1761619850759,1e-08,4089.8,4089.7,3.46541879]
[1761619850961,1e-08,4089.8,4089.7,3.87092279]
[1761619851325,1e-08,4089.8,4088.4,12.1509129]
[1761619851526,1e-08,4089.8,4089.7,2.44516712]
[1761619853059,1e-08,4089.8,4089.7,3.42316712]
[1761619853827,1e-08,4089.8,4089.7,3.44761879]
[1761619854059,1e-08,4089.8,4089.7,3.42316712]
[1761619854359,1e-08,4089.8,4089.7,2.44516712]
[1761619854666,1e-08,4089.8,4088.9,2.44563874]
[1761619854667,0.09999999,4089.7,4088.9,2.44563874]
[1761619854880,0.09999999,4089.7,4088.8,0.978]
[1761619854881,0.09999999,4089.7,4089.6,2.44522691]
[1761619856143,1e-08,4089.8,4089.7,2.44516712]
[1761619856742,1e-08,4089.8,4089.6,0.002]
[1761619856743,0.09999999,4089.7,4089.6,0.002]
[1761619856944,0.09999999,4088.5,4087.8,0.978]
[1761619857149,0.62968912,4089.3,4089.1,0.002]
[1761619857454,0.2341,4089.2,4089.1,0.002]
[1761619857762,0.2341,4089.2,4089.1,2.44752591]
[1761619857763,0.6654,4089.2,4089.1,2.44752591]
[1761619857963,0.2341,4089.6,4089.5,2.4452867]
[1761619858163,0.63068913,4089.8,4089.5,2.4452867]
[1761619858369,0.00100001,4089.8,4089.7,2.44516712]
[1761619858546,0.00100001,4089.8,4089.7,2.56756712]
[1761619858871,0.43230001,4089.8,4089.7,0.1224]
[1761619859073,0.00100001,4089.8,4089.7,2.56756712]
[1761619859244,0.43230001,4089.8,4089.7,0.1224]
[1761619859644,0.38230001,4089.8,4089.7,0.1224]
[1761619860247,0.75208912,4090.1,4090.0,2.44498777]
[1761619860579,0.84646454,4090.4,4089.1,0.002]
[1761619860580,0.63865403,4090.4,4089.1,0.002]
[1761619860790,0.63865403,4090.4,4090.1,0.1224]
[1761619860966,0.2341,4090.7,4090.6,2.44462914]
[1761619861276,0.63865403,4091.2,4090.7,2.44456938]
[1761619861607,0.63865403,4091.5,4090.7,2.44456938]
[1761619861890,1.06586454,4091.7,4090.7,2.44456938]
[1761619861891,0.2194,4091.7,4090.7,2.44456938]
[1761619862457,0.01,4091.8,4090.7,2.44456938]
[1761619862674,0.01,4091.8,4091.7,2.44397194]
[1761619863781,0.01,4091.8,4091.7,3.42197194]
[1761619863956,0.01,4091.8,4091.7,3.44641165]
[1761619864158,0.01,4092.8,4092.7,2.44337478]
[1761619864361,0.2289,4094.2,4093.7,2.44277792]
[1761619864753,0.85646454,4094.8,4093.7,2.44277792]
[1761619864754,0.01,4094.8,4093.7,3.48857792]
[1761619864980,0.01,4094.8,4094.7,2.44218135]
[1761619865357,0.4382,4094.8,4093.2,0.0688]
[1761619865549,0.4382,4094.8,4092.3,2.4435994]
[1761619865550,0.4382,4094.8,4092.9,0.977]
[1761619865949,0.4382,4094.8,4093.0,0.02443195]
[1761619866550,0.4382,4094.8,4092.7,0.0688]
[1761619866750,0.4382,4094.8,4093.0,1.5552]
[1761619866951,0.01,4094.8,4094.7,2.44218135]
[1761619867380,0.01,4094.8,4094.7,3.41918135]
[1761619867760,0.01,4094.8,4094.7,2.44218135]
[1761619867761,1e-08,4094.8,4094.7,2.44218135]
[1761619867969,1e-08,4094.8,4093.6,0.0688]
[1761619868282,0.4282,4094.7,4092.6,2.44341342]
[1761619868446,0.4282,4094.7,4093.9,2.44260266]
[1761619868653,0.4282,4094.7,4093.8,0.977]
[1761619869047,1e-08,4094.8,4093.9,0.02442658]
[1761619869282,1e-08,4094.8,4094.1,2.44250189]
[1761619869603,1e-08,4094.8,4094.2,0.977]
[1761619869753,1e-08,4094.8,4094.7,2.44218135]
[1761619870077,1e-08,4094.8,4094.7,2.46660316]
[1761619870262,0.69604928,4095.8,4094.8,2.44212171]
[1761619870493,0.69604928,4095.8,4095.7,2.44158507]
[1761619870712,0.2163,4096.9,4096.7,2.44098908]
[1761619870885,0.2163,4097.2,4096.7,2.44098908]
[1761619871085,0.4365,4097.5,4095.5,0.0688]
[1761619871304,0.4365,4097.5,4096.7,2.44098908]
[1761619871815,0.4465,4096.8,4094.7,0.0688]
[1761619872116,0.4465,4096.8,4094.8,0.977]
[1761619872318,0.4465,4096.8,4094.7,0.0688]
[1761619872617,0.4465,4096.8,4093.7,0.0688]
[1761619872913,0.4465,4096.8,4093.8,1.00142718]
[1761619873115,2.44115703,4096.5,4095.2,2.44187293]
[1761619873278,2.44117344,4096.4,4095.2,2.44187293]
[1761619873484,2.44117344,4096.4,4094.9,3.41905056]
[1761619873485,0.4365,4096.6,4095.0,2.44198613]
[1761619873797,0.4365,4096.6,4094.9,0.977]
[1761619874180,0.4365,4096.6,4095.1,2.4419428]
[1761619874489,0.01,4096.8,4095.4,0.405504]
[1761619874690,0.01,4096.8,4096.7,2.44098908]
[1761619875491,0.01,4096.8,4096.7,2.46539897]
[1761619875819,0.01,4096.8,4096.7,2.44098908]
[1761619876015,0.01,4096.8,4096.7,3.41798908]
[1761619876917,0.01,4096.8,4096.7,3.82349308]
[1761619877121,0.001,4097.1,4097.0,2.84631434]
[1761619877421,0.001,4097.1,4097.0,2.44081034]
[1761619877596,0.001,4097.1,4097.0,3.44121844]
[1761619877797,0.001,4097.1,4096.1,0.405504]
[1761619878024,0.001,4097.1,4096.9,2.44086317]
[1761619878236,0.001,4097.1,4097.0,2.44081034]
[1761619878414,0.001,4097.1,4096.0,0.0688]
[1761619878743,0.001,4097.1,4095.0,0.02442002]
[1761619878946,0.001,4097.1,4096.8,2.4409294]
[1761619879148,0.001,4097.1,4096.7,0.976]
[1761619879518,0.001,4097.1,4095.7,0.474304]
[1761619879519,0.4375,4097.1,4095.1,0.0788]
[1761619879822,0.001,4097.1,4095.2,1.00041883]
[1761619880024,0.001,4097.1,4097.0,2.44081034]
[1761619880424,0.001,4097.1,4096.6,3.41704512]
[1761619880425,0.001,4097.1,4096.7,2.44098908]
[1761619880649,0.001,4097.1,4096.6,2.44104477]
[1761619880949,0.001,4097.1,4096.0,0.405504]
[1761619880950,0.001,4097.1,4097.0,2.44081034]
[1761619881148,0.001,4097.1,4097.0,2.56321034]
[1761619881347,0.001,4097.1,4097.0,2.58761844]
[1761619881733,0.001,4097.1,4097.0,2.56321034]
[1761619881927,0.001,4097.1,4095.9,2.4414536]
[1761619882126,0.001,4097.1,4095.1,0.01]
[1761619882127,0.4375,4097.1,4095.1,0.01]
[1761619882449,0.4375,4097.1,4095.2,0.976]
[1761619882818,0.4375,4097.1,4095.4,2.44171534]
[1761619882819,2.44092758,4096.9,4095.4,2.44171534]
[1761619883024,2.8782878,4097.1,4095.1,0.01]
[1761619883025,0.4375,4097.1,4095.1,0.01]
[1761619883215,0.4375,4097.1,4095.2,0.976]
[1761619883216,0.001,4097.1,4095.2,0.976]
[1761619883516,0.001,4097.1,4097.0,2.44081034]
[1761619884549,0.001,4097.1,4095.9,0.405504]
[1761619884763,0.001,4097.1,4097.0,2.84631434]
[1761619885057,0.001,4097.1,4097.0,0.976]
[1761619885218,0.001,4097.1,4095.3,0.0688]
[1761619885439,0.001,4097.1,4095.4,0.976]
[1761619885644,0.4375,4097.1,4095.6,2.44164469]
[1761619885885,0.4375,4097.1,4095.7,0.976]
[1761619886239,0.001,4097.1,4096.3,2.44120319]
[1761619886552,0.001,4097.1,4096.4,0.02441167]
[1761619886872,0.001,4097.1,4096.4,2.44115719]
[1761619887048,0.001,4097.1,4096.4,0.976]
[1761619887252,0.001,4097.1,4096.7,2.4409842]
[1761619887761,0.001,4097.1,4096.5,2.44109983]
[1761619887947,0.4375,4097.1,4096.4,3.41715926]
[1761619888148,0.4375,4097.1,4096.5,2.44105443]
[1761619888350,0.4375,4097.1,4096.4,0.976]
[1761619888661,0.4375,4097.1,4095.1,0.01]
[1761619888849,2.44090535,4096.9,4095.5,2.44170183]
[1761619889049,2.44093432,4096.8,4095.4,2.44175468]
[1761619889395,2.44093432,4096.8,4095.2,0.976]
[1761619889396,0.4365,4097.0,4095.2,0.976]
[1761619889569,2.4409295,4096.8,4095.2,0.976]
[1761619889876,2.44099665,4096.7,4095.2,0.976]
[1761619890074,2.87743379,4096.8,4095.2,3.41783505]
[1761619890241,2.44100417,4096.7,4095.2,0.976]
[1761619890644,0.4365,4096.6,4095.7,2.44158005]
[1761619890874,0.4365,4096.6,4095.7,2.44153309]
[1761619891075,0.4365,4096.6,4095.2,0.976]
[1761619891248,0.4365,4096.6,4095.1,0.01]
[1761619891450,2.44122787,4096.3,4095.1,0.01]
[1761619891768,0.4365,4096.6,4095.1,0.01]
[1761619892080,0.4365,4096.6,4095.5,2.4417]
[1761619892369,0.4365,4096.5,4095.1,0.01]
[1761619892941,2.4415199,4095.9,4095.1,0.01]
[1761619893163,0.2163,4095.2,4095.1,0.01]
[1761619893564,0.6528,4095.2,4095.1,0.01]
[1761619896079,0.6528,4095.2,4095.1,0.012]
[1761619896581,0.2368,4095.7,4095.1,0.012]
[1761619897448,0.6907,4095.7,4095.1,0.012]
[1761619897843,0.4539,4095.6,4095.1,0.012]
[1761619898061,2.89558861,4095.6,4095.1,0.012]
[1761619898480,0.4539,4095.5,4095.1,0.012]
[1761619899061,0.4539,4095.4,4095.1,0.012]
[1761619900093,2.44188318,4095.2,4095.1,0.012]
[1761619900298,0.4539,4095.4,4095.1,0.012]
[1761619901478,2.44182462,4095.3,4095.1,0.012]
[1761619901995,0.6907,4095.2,4095.1,0.012]
[1761619902199,0.2368,4095.2,4095.1,0.012]
[1761619902903,0.2368,4095.7,4095.1,0.1344]
[1761619903262,0.2368,4095.7,4095.6,0.1224]
[1761619903463,0.4539,4095.6,4095.1,0.012]
[1761619903694,2.44172107,4095.5,4095.1,0.012]
[1761619903896,2.89556206,4095.6,4095.1,0.012]
[1761619904081,0.4539,4095.5,4095.1,0.012]
[1761619904601,2.44177683,4095.4,4095.1,0.012]
[1761619904797,2.44188318,4095.2,4095.1,0.012]
[1761619905185,2.89578318,4095.2,4095.1,0.012]
[1761619911199,3.13229537,4095.7,4095.1,0.012]
[1761619911387,0.976,4095.6,4095.1,0.012]
[1761619911589,3.41765447,4095.6,4095.1,0.012]
[1761619911797,0.4539,4095.5,4095.1,0.012]
[1761619912373,2.44188318,4095.2,4095.1,0.012]
[1761619912573,2.44218135,4094.7,4094.6,0.002]
[1761619913211,0.4539,4095.3,4094.6,0.002]
[1761619913401,3.28429143,4096.2,4094.6,0.002]
[1761619913402,1.4299,4095.6,4094.6,0.002]
[1761619913603,0.1224,4094.9,4094.6,0.002]
[1761619914986,0.4539,4095.5,4094.8,0.1224]
[1761619915405,2.89566281,4095.5,4095.1,0.002]
[1761619915631,0.4539,4095.4,4095.1,0.002]
[1761619915922,2.89568903,4095.4,4095.1,0.002]
[1761619916233,2.89567807,4095.4,4095.1,0.002]
[1761619916434,2.44183345,4095.3,4095.1,0.002]
[1761619916630,2.44276366,4095.5,4095.1,0.002]
[1761619916832,0.001,4095.5,4095.1,0.002]
[1761619917131,0.4539,4095.4,4095.1,0.002]
[1761619917331,2.44188318,4095.2,4095.1,0.002]
[1761619917831,2.89578318,4095.2,4095.1,0.002]
[1761619920616,0.4539,4095.2,4095.1,0.002]
[1761619920813,0.001,4095.5,4095.1,0.002]
[1761619921413,0.001,4095.5,4095.2,13.04051659]
[1761619921635,0.001,4095.5,4095.4,2.44176393]
[1761619922115,0.001,4095.5,4095.4,2.52256393]
[1761619922318,0.001,4095.5,4095.4,2.92806793]
[1761619922636,0.001,4095.5,4095.4,4.48326793]
[1761619922965,0.01,4096.8,4095.8,0.405504]
[1761619923159,0.01,4096.8,4095.2,13.04051659]
[1761619923160,0.01,4096.8,4095.5,0.0808]
[1761619923317,0.4539,4096.7,4094.7,14.01651659]
[1761619923718,0.4539,4096.7,4094.6,0.002]
[1761619923719,2.44154132,4095.8,4094.6,0.002]
[1761619923945,2.44170305,4095.6,4094.6,0.002]
[1761619924267,3.41727093,4096.3,4094.6,0.002]
[1761619924268,2.89537947,4095.9,4094.6,2.44423699]
[1761619924428,0.2139,4095.2,4094.6,0.002]
[1761619924842,0.661,4095.2,4094.6,0.002]
[1761619925619,3.10288318,4095.2,4094.6,0.002]
[1761619925820,0.661,4095.2,4094.6,0.002]
[1761619926048,2.44158507,4095.7,4094.6,0.002]
[1761619926213,2.8886328,4095.8,4094.7,2.44212586]
[1761619926415,0.2139,4095.2,4094.6,0.002]
[1761619926735,2.65578318,4095.2,4094.6,0.002]
[1761619926937,0.2139,4095.2,4094.6,0.002]
[1761619927160,0.2139,4095.2,4094.8,0.1224]
[1761619927653,0.1224,4095.4,4094.8,0.1224]